bitfinex-derivatives/quotes_SOLF0:USTF0_20251202
["timestamp","ask_amount","ask_price","bid_price","bid_amount"]
[1764638226693,0.04993365,127.28,127.26,75.28336332]
[1764638226891,3.09,127.36,127.3,109.9832]
[1764638227404,3.09,127.36,127.33,7.0684]
[1764638227595,3.09,127.36,127.31,109.9711]
[1764638227596,3.09,127.39,127.32,178.1234]
[1764638227797,3.09,127.39,127.34,0.05191829]
[1764638227798,0.05944563,127.37,127.34,0.05191829]
[1764638228105,3.09,127.42,127.38,7.0657]
[1764638228408,3.09,127.46,127.39,109.9031]
[1764638229204,3.27,127.43,127.41,0.05119749]
[1764638229407,3.27,127.43,127.41,0.05140134]
[1764638230802,3.27,127.42,127.34,109.9416]
[1764638231111,3.27,127.42,127.34,178.0816]
[1764638231616,3.27,127.42,127.36,109.9299]
[1764638231809,0.05631573,127.4,127.38,0.05826585]
[1764638232005,3.32631573,127.4,127.38,0.05826585]
[1764638234111,0.05631573,127.4,127.38,0.05826585]
[1764638236202,0.05631573,127.4,127.38,7.12366585]
[1764638236401,0.05631573,127.4,127.38,0.05826585]
[1764638237305,3.32631573,127.4,127.38,0.05826585]
[1764638237812,0.05631573,127.4,127.38,7.12386585]
[1764638238108,3.27,127.46,127.39,178.004]
[1764638238502,3.27,127.46,127.4,7.0645]
[1764638238910,0.05539655,127.44,127.42,0.05766223]
[1764638239816,3.32539655,127.44,127.42,0.05766223]
[1764638240312,0.05539655,127.44,127.42,7.12116223]
[1764638240714,3.32539655,127.44,127.42,7.12116223]
[1764638240908,0.05539655,127.44,127.42,7.12116223]
[1764638241113,3.27,127.48,127.43,109.864]
[1764638241313,3.27,127.51,127.43,177.944]
[1764638241917,3.27,127.49,127.43,7.0629]
[1764638242111,3.27,127.46,127.45,0.05432165]
[1764638243307,3.32331179,127.47,127.45,0.05432165]
[1764638243510,3.32331179,127.47,127.43,7.0629]
[1764638244715,3.32331179,127.47,127.44,0.05785854]
[1764638250622,3.32331179,127.47,127.4,75.1446]
[1764638251119,3.32331179,127.47,127.41,7.0641]
[1764638251320,3.32331179,127.47,127.4,68.08]
[1764638251517,3.32331179,127.47,127.42,0.06009347]
[1764638252420,3.39,127.45,127.42,0.06009347]
[1764638253217,3.39,127.45,127.36,68.04]
[1764638253411,3.39,127.44,127.37,109.9234]
[1764638254218,0.05280598,127.42,127.4,7.0647]
[1764638256429,3.39,127.47,127.4,7.0647]
[1764638256430,3.39,127.47,127.44,7.0622]
[1764638257431,3.44920545,127.47,127.44,7.11417532]
[1764638261926,0.05920545,127.47,127.44,7.11417532]
[1764638262436,7.16797511,127.53,127.47,109.834]
[1764638262630,11.81868627,127.52,127.47,109.834]
[1764638262931,5.87954766,127.51,127.47,109.834]
[1764638263126,5.88702481,127.5,127.47,109.834]
[1764638263326,7.16797511,127.53,127.47,109.834]
[1764638263529,0.05094172,127.5,127.47,109.88393094]
[1764638264426,0.05094172,127.5,127.49,7.0593]
[1764638264633,9.1241199,127.5,127.47,0.04993094]
[1764638264827,3.23094172,127.5,127.47,0.04993094]
[1764638265028,9.07340894,127.49,127.47,0.04993094]
[1764638265231,5.89340894,127.48,127.47,0.04993094]
[1764638265536,9.07340894,127.48,127.47,0.04993094]
[1764638267032,5.89340894,127.48,127.47,0.04993094]
[1764638268133,0.05094172,127.5,127.48,7.0604]
[1764638272647,3.23094172,127.5,127.48,7.0604]
[1764638272943,3.23094172,127.5,127.47,0.04993094]
[1764638272944,10.39891683,127.5,127.47,0.04993094]
[1764638273142,5.86450809,127.49,127.47,0.04993094]
[1764638273341,3.18,127.49,127.47,0.04993094]
[1764638277448,3.18,127.49,127.47,7.11073094]
[1764638278149,3.18,127.49,127.47,0.04993094]
[1764638279251,3.18,127.49,127.47,7.11073094]
[1764638280250,5.93104891,127.48,127.47,7.11073094]
[1764638280439,3.18,127.49,127.47,7.11073094]
[1764638281650,3.18,127.49,127.45,7.0617]
[1764638281851,0.05094172,127.5,127.42,109.8771]
[1764638281852,3.18,127.47,127.42,109.8771]
[1764638282153,7.16797511,127.5,127.43,109.8703]
[1764638282154,3.18,127.5,127.43,109.8703]
[1764638282352,5.93451266,127.49,127.43,109.8703]
[1764638282548,7.16797511,127.51,127.43,109.8703]
[1764638282549,9.11451266,127.48,127.43,109.8703]
[1764638282741,0.05796764,127.47,127.44,0.05975223]
[1764638283145,7.16797511,127.52,127.44,0.05975223]
[1764638283146,10.34797511,127.53,127.46,109.8431]
[1764638283450,5.93447664,127.52,127.46,109.8431]
[1764638283647,3.18,127.53,127.46,109.8431]
[1764638284045,0.05317054,127.51,127.48,0.05476116]
[1764638284456,0.05317054,127.51,127.48,7.11486116]
[1764638285862,3.23317054,127.51,127.48,7.11486116]
[1764638287263,0.05317054,127.51,127.5,7.0593]
[1764638287760,3.23317054,127.51,127.48,7.11486116]
[1764638288658,3.23317054,127.51,127.48,0.05476116]
[1764638290559,0.05317054,127.51,127.48,0.05476116]
[1764638290955,3.43317054,127.51,127.48,0.05476116]
[1764638292557,0.05317054,127.51,127.48,0.05476116]
[1764638294373,0.05317054,127.51,127.49,7.0596]
[1764638297178,3.43317054,127.51,127.48,0.05476116]
[1764638299075,5.94079642,127.5,127.48,0.05476116]
[1764638299276,3.38,127.5,127.48,0.05476116]
[1764638299974,3.38,127.48,127.41,109.8835]
[1764638300279,5.947097,127.47,127.41,109.8835]
[1764638300474,3.38,127.48,127.41,109.8835]
[1764638300675,5.94709812,127.47,127.41,109.8835]
[1764638300876,0.05878661,127.45,127.43,0.05784083]
[1764638301376,0.05878661,127.45,127.43,7.12064083]
[1764638302771,3.38,127.5,127.46,7.0611]
[1764638302975,12.23003075,127.49,127.46,7.0611]
[1764638303176,3.38,127.49,127.46,7.0611]
[1764638303672,3.38,127.49,127.44,177.802]
[1764638303673,85.54637511,127.52,127.47,7.0606]
[1764638303880,12.28940875,127.51,127.48,0.06011732]
[1764638304083,8.85083079,127.5,127.48,0.06011732]
[1764638304279,3.43857796,127.51,127.48,0.06011732]
[1764638304483,12.23224192,127.5,127.48,0.06011732]
[1764638304675,3.38,127.49,127.48,0.06011732]
[1764638304875,3.43857796,127.51,127.48,0.06011732]
[1764638305177,12.23224192,127.5,127.48,0.06011732]
[1764638305379,3.38,127.5,127.48,0.06011732]
[1764638305582,9.33099508,127.49,127.48,0.06011732]
[1764638306783,12.23338589,127.49,127.48,0.06011732]
[1764638307180,9.33099508,127.49,127.48,0.06011732]
[1764638307884,12.23370233,127.49,127.48,0.06011732]
[1764638308476,9.33099508,127.49,127.48,0.06011732]
[1764638309373,9.33099508,127.49,127.38,109.9099]
[1764638309374,3.38,127.48,127.38,109.9099]
[1764638309687,16.02170289,127.47,127.39,109.9056]
[1764638309988,8.85372778,127.46,127.39,109.9056]
[1764638310190,10.4413,127.47,127.4,109.8975]
[1764638310392,0.05152673,127.45,127.42,0.05998951]
[1764638310688,0.05152673,127.45,127.43,7.063]
[1764638314486,3.38152673,127.45,127.42,0.05998951]
[1764638314691,3.33,127.43,127.42,0.05998951]
[1764638318486,12.2879294,127.43,127.42,0.05998951]
[1764638318689,6.33194213,127.43,127.42,0.05998951]
[1764638319196,3.09,127.42,127.39,7.0653]
[1764638320198,3.13999339,127.42,127.39,7.11555114]
[1764638324090,3.13999339,127.42,127.39,0.05025114]
[1764638324298,3.09,127.4,127.34,109.943]
[1764638324497,14.11432814,127.39,127.32,109.9636]
[1764638324697,3.09,127.39,127.33,2.08055148]
[1764638325299,3.09,127.39,127.34,7.068]
[1764638325499,0.04954529,127.37,127.35,0.0511924]
[1764638327006,5.22009677,127.37,127.35,0.0511924]
[1764638327201,3.09,127.36,127.28,2.08055148]
[1764638327396,3.09,127.36,127.27,177.9645]
[1764638327600,3.09,127.34,127.27,180.04505148]
[1764638328201,0.051587,127.32,127.29,0.0556403]
[1764638328400,0.051587,127.32,127.3,7.0701]
[1764638328597,3.141587,127.32,127.29,0.0556403]
[1764638330308,0.051587,127.32,127.29,110.0448403]
[1764638330499,0.051587,127.32,127.3,67.96]
[1764638330702,0.051587,127.32,127.3,75.0302]
[1764638330905,67.96,127.43,127.34,109.9493]
[1764638331103,3.09,127.42,127.35,109.9359]
[1764638331898,3.14032448,127.4,127.37,0.0562149]
[1764638333201,10.20532448,127.4,127.37,0.0562149]
[1764638333395,3.09,127.39,127.37,0.0562149]
[1764638335813,3.09,127.38,127.31,7.0694]
[1764638336799,3.09,127.35,127.33,0.05419363]
[1764638337610,3.14424951,127.36,127.33,0.05419363]
[1764638337910,0.05424951,127.36,127.33,0.05419363]
[1764638338110,3.14424951,127.36,127.33,0.05419363]
[1764638338508,3.14424951,127.36,127.26,110.0145]
[1764638338804,3.09,127.36,127.26,110.0145]
[1764638339211,3.09,127.33,127.28,7.0711]
[1764638339607,7.0683,127.34,127.29,0.05272191]
[1764638339608,3.14282593,127.32,127.29,0.05272191]
[1764638339910,0.05282593,127.32,127.29,0.05272191]
[1764638340414,3.14282593,127.32,127.29,0.05272191]
[1764638340613,3.14282593,127.32,127.24,110.0284]
[1764638340614,3.14282593,127.32,127.24,7.0734]
[1764638340907,3.09,127.3,127.24,7.0734]
[1764638341216,109.9615,127.33,127.25,7.0728]
[1764638341217,10.159,127.33,127.25,7.0728]
[1764638341511,3.09,127.31,127.25,7.0728]
[1764638341713,3.09,127.28,127.22,117.1221]
[1764638341912,3.09,127.28,127.22,7.0743]
[1764638342310,3.09,127.27,127.2,110.0648]
[1764638342612,3.09,127.26,127.2,7.0756]
[1764638342814,0.05119046,127.24,127.22,0.05614776]
[1764638343902,10.159,127.33,127.24,110.0359]
[1764638344209,6.10866588,127.32,127.25,110.0257]
[1764638344410,3.09,127.32,127.25,110.0257]
[1764638345010,0.05417184,127.3,127.27,0.05274737]
[1764638346211,3.14417184,127.3,127.27,0.05274737]
[1764638346411,0.05417184,127.3,127.27,0.05274737]
[1764638346616,0.05417184,127.3,127.28,7.0715]
[1764638347109,0.05417184,127.3,127.28,117.0721]
[1764638349017,0.05417184,127.3,127.28,7.0715]
[1764638350906,0.05417184,127.3,127.27,0.05274737]
[1764638351118,3.44417184,127.3,127.27,0.05274737]
[1764638352113,113.43077184,127.3,127.27,0.05274737]
[1764638352412,3.39,127.28,127.22,68.0]
[1764638353019,3.39,127.28,127.23,7.0741]
[1764638353414,0.05187639,127.27,127.24,0.0551442]
[1764638353916,3.44187639,127.27,127.24,0.0551442]
[1764638354803,3.02198724,127.26,127.24,0.0551442]
[1764638355006,6.41198724,127.25,127.24,0.0551442]
[1764638356709,3.39,127.24,127.17,110.0904]
[1764638357014,3.39,127.24,127.15,220.2216]
[1764638357015,3.39,127.22,127.18,7.0767]
[1764638357213,3.02198724,127.21,127.18,7.0767]
[1764638357516,3.02198724,127.2,127.18,7.0767]
[1764638357712,0.05274287,127.2,127.18,7.0767]
[1764638357913,0.05274287,127.2,127.18,7.12792417]
[1764638359322,3.39,127.26,127.21,7.0753]
[1764638359613,6.40824617,127.25,127.21,7.0753]
[1764638359810,3.01824617,127.24,127.21,7.0753]
[1764638360007,3.01824617,127.23,127.21,7.0753]
[1764638360213,3.39,127.24,127.21,7.0753]
[1764638360421,3.01944492,127.23,127.21,7.12994883]
[1764638360714,3.0182623,127.22,127.21,0.05464883]
[1764638360921,6.4082623,127.22,127.21,0.05464883]
[1764638363020,6.4082623,127.22,127.15,75.0984]
[1764638363021,3.39,127.21,127.15,75.0984]
[1764638363221,6.4082623,127.2,127.15,75.0984]
[1764638363422,3.0182623,127.19,127.15,75.0984]
[1764638363619,3.0182623,127.18,127.15,75.0984]
[1764638363826,3.0182623,127.17,127.15,75.0984]
[1764638364016,0.05471538,127.17,127.15,75.1549552]
[1764638367315,3.44471538,127.17,127.15,75.1549552]
[1764638367521,0.05471538,127.17,127.15,68.0765552]
[1764638367819,0.05471538,127.17,127.15,0.0565552]
[1764638368927,0.05471538,127.17,127.15,7.1351552]
[1764638369120,3.39,127.23,127.15,0.0565552]
[1764638369423,3.39,127.23,127.14,110.1155]
[1764638369424,8.9686892,127.22,127.14,110.1155]
[1764638369728,3.39,127.23,127.14,110.1155]
[1764638370027,0.05166251,127.2,127.17,0.05313178]
[1764638371528,0.05166251,127.2,127.18,7.0769]
[1764638372832,3.29,127.26,127.2,7.0756]
[1764638373019,3.29,127.24,127.2,7.0756]
[1764638373824,3.29,127.24,127.21,0.05927459]
[1764638373825,0.05705496,127.23,127.21,0.05927459]
[1764638375227,3.34705496,127.23,127.21,0.05927459]
[1764638378326,0.05705496,127.23,127.21,0.05927459]
[1764638379532,0.05705496,127.23,127.21,7.13447459]
[1764638381334,3.20705496,127.23,127.21,7.13447459]
[1764638382336,3.20705496,127.23,127.21,0.05927459]
[1764638383037,10.28155496,127.23,127.21,0.05927459]
[1764638383227,6.05898953,127.22,127.21,0.05927459]
[1764638383429,0.05705496,127.23,127.21,0.05927459]
[1764638384136,3.20705496,127.23,127.21,0.05927459]
[1764638386437,3.15,127.21,127.17,7.0774]
[1764638386637,7.0746,127.23,127.16,178.1194]
[1764638386833,2.91039014,127.22,127.17,110.0958]
[1764638387034,3.15,127.25,127.17,110.0958]
[1764638387231,8.90719105,127.24,127.17,110.0958]
[1764638387533,0.049699,127.22,127.19,0.05442691]
[1764638388335,0.049699,127.22,127.19,7.13052691]
[1764638390538,0.049699,127.22,127.2,7.0758]
[1764638391228,0.049699,127.22,127.2,75.0958]
[1764638392942,0.049699,127.22,127.2,68.02]
[1764638393738,0.049699,127.22,127.2,75.0958]
[1764638394640,3.199699,127.22,127.2,68.02]
[1764638395739,3.199699,127.22,127.19,0.05442691]
[1764638395935,3.15,127.2,127.13,110.125]
[1764638396139,8.93932028,127.19,127.13,110.125]
[1764638396442,3.15,127.2,127.13,110.125]
[1764638396634,8.94121293,127.19,127.13,110.125]
[1764638396831,3.15,127.2,127.13,110.125]
[1764638397036,0.05745127,127.18,127.15,0.057005]
[1764638397435,3.20745127,127.18,127.15,0.057005]
[1764638397839,3.15,127.16,127.15,0.057005]
[1764638398442,3.20745127,127.18,127.15,0.057005]
[1764638398642,12.08504822,127.17,127.15,0.057005]
[1764638398946,3.15,127.16,127.15,0.057005]
[1764638399244,0.05745127,127.18,127.15,0.057005]
[1764638399641,6.01456558,127.17,127.15,0.057005]
[1764638399842,3.20745127,127.18,127.15,0.057005]
[1764638400042,9.16435942,127.17,127.15,0.057005]
[1764638400237,3.15,127.17,127.15,0.057005]
[1764638400845,3.15,127.15,127.11,75.1009]
[1764638401842,3.15,127.15,127.12,0.04491816]
[1764638402152,3.20313743,127.14,127.12,0.04491816]
[1764638402845,0.05313743,127.14,127.12,0.04491816]
[1764638403444,3.20313743,127.14,127.12,0.04491816]
[1764638405337,3.20313743,127.14,127.09,68.02]
[1764638405749,3.20313743,127.14,127.07,117.2624]
[1764638405949,3.20313743,127.14,127.05,178.2337]
[1764638405950,3.15,127.13,127.05,117.2777]
[1764638406134,3.15,127.13,127.05,7.084]
[1764638406342,3.20204433,127.1,127.04,68.04]
[1764638407547,3.20204433,127.1,127.03,7.0852]
[1764638408045,3.20204433,127.1,127.0,117.3284]
[1764638408046,3.15,127.08,127.0,117.3284]
[1764638408244,3.18303625,127.05,127.0,117.3284]
[1764638408851,0.05303625,127.05,127.0,117.3284]
[1764638409753,0.05303625,127.05,127.01,7.086]
[1764638410053,0.05303625,127.05,127.02,110.2251]
[1764638410346,0.05303625,127.05,127.03,7.085]
[1764638411653,0.05303625,127.05,127.02,68.04]
[1764638412353,3.18303625,127.05,127.0,7.0868]
[1764638412551,3.18303625,127.05,127.0,75.1468]
[1764638412754,0.05303625,127.05,127.02,110.2248]
[1764638413350,0.05303625,127.05,127.03,7.0851]
[1764638414147,0.05303625,127.05,127.03,117.3025]
[1764638414450,3.13,127.09,127.06,7.0833]
[1764638415348,0.05957751,127.09,127.07,7.0828]
[1764638417249,3.13,127.16,127.1,110.1548]
[1764638417753,3.13,127.16,127.09,110.1634]
[1764638418350,0.05116778,127.14,127.11,110.19569756]
[1764638418550,0.0570298,127.14,127.12,68.06]
[1764638418749,3.13,127.19,127.13,110.1258]
[1764638419051,3.13,127.21,127.13,110.1258]
[1764638419251,3.13,127.21,127.13,178.1858]
[1764638419944,3.18718531,127.18,127.16,0.06011886]
[1764638423644,3.13,127.17,127.12,7.08]
[1764638424758,3.13,127.17,127.13,0.055358]
[1764638433453,0.05718531,127.18,127.13,0.055358]
[1764638433655,7.23816327,127.23,127.16,110.1043]
[1764638433966,3.37,127.24,127.15,110.1087]
[1764638434168,3.37,127.22,127.15,110.1087]
[1764638434768,0.05904047,127.2,127.17,110.15181376]
[1764638434959,0.05540826,127.2,127.17,0.05575079]
[1764638435159,0.05540826,127.2,127.17,7.13315079]
[1764638435664,0.05540826,127.2,127.17,0.05575079]
[1764638436067,0.05540826,127.2,127.18,7.0768]
[1764638436860,187.67068807,127.29,127.2,7.0757]
[1764638436861,12.22360084,127.26,127.2,7.0757]
[1764638437061,12.22360084,127.26,127.17,110.0939]
[1764638437062,3.37,127.26,127.17,110.0939]
[1764638437262,3.37,127.24,127.16,110.1026]
[1764638437857,3.37,127.24,127.19,0.05235638]
[1764638437858,0.04983002,127.21,127.19,0.05235638]
[1764638438064,3.41983002,127.21,127.19,0.05235638]
[1764638442477,0.04983002,127.21,127.19,0.05235638]
[1764638442770,3.31983002,127.21,127.19,0.05235638]
[1764638445467,3.31983002,127.21,127.16,7.0779]
[1764638446365,10.39533002,127.21,127.16,7.0779]
[1764638446564,7.12533002,127.21,127.17,0.05600438]
[1764638446763,10.39533002,127.21,127.17,0.05600438]
[1764638447171,3.27,127.2,127.17,0.05600438]
[1764638447767,7.12533002,127.21,127.17,0.05600438]
[1764638447768,10.39533002,127.21,127.17,0.05600438]
[1764638448074,3.27,127.2,127.17,0.05600438]
[1764638449481,0.04983002,127.21,127.17,7.13340438]
[1764638449782,0.04983002,127.21,127.17,2.1442172]
[1764638450274,0.04983002,127.21,127.18,7.0768]
[1764638450976,0.04983002,127.21,127.19,7.0762]
[1764638451778,3.27,127.25,127.21,7.0751]
[1764638452283,3.27,127.25,127.19,9.16451282]
[1764638452577,3.27,127.25,127.19,2.08821282]
[1764638452879,0.05643602,127.23,127.21,0.05052413]
[1764638455777,3.32643602,127.23,127.21,0.05052413]
[1764638455978,3.27,127.22,127.15,180.19431282]
[1764638456275,3.27,127.22,127.15,68.0]
[1764638456479,3.27,127.2,127.15,68.0]
[1764638456677,3.27,127.2,127.13,112.21311282]
[1764638456872,3.27,127.18,127.11,112.23021282]
[1764638457183,0.05966267,127.16,127.13,0.05231469]
[1764638457376,0.05966267,127.16,127.13,7.13201469]
[1764638457577,0.05966267,127.16,127.13,0.05231469]
[1764638458182,3.32966267,127.16,127.13,0.05231469]
[1764638458772,0.05966267,127.16,127.13,7.13191469]
[1764638459487,3.32966267,127.16,127.13,7.13191469]
[1764638460486,3.32966267,127.16,127.13,0.05231469]
[1764638461385,3.27,127.14,127.13,0.05231469]
[1764638464285,0.05966267,127.16,127.13,0.05231469]
[1764638464483,3.32966267,127.16,127.13,0.05231469]
[1764638465186,0.05966267,127.16,127.13,0.05231469]
[1764638465486,0.05966267,127.16,127.13,7.13211469]
[1764638467077,3.32966267,127.16,127.13,7.13211469]
[1764638467389,0.05966267,127.16,127.13,7.13211469]
[1764638468789,3.31966267,127.16,127.13,7.13211469]
[1764638468990,3.31966267,127.16,127.13,0.05231469]
[1764638469384,0.05966267,127.16,127.13,0.05231469]
[1764638469584,3.31966267,127.16,127.13,0.05231469]
[1764638470979,3.31966267,127.16,127.07,110.1772]
[1764638470980,3.26,127.15,127.07,7.0829]
[1764638471182,9.22897052,127.14,127.07,7.0829]
[1764638471386,3.26,127.14,127.07,7.0829]
[1764638471592,3.26,127.14,127.08,7.0824]
[1764638471785,3.26,127.14,127.07,110.1822]
[1764638471986,0.0542258,127.12,127.09,0.05841091]
[1764638472703,3.3142258,127.12,127.09,0.05841091]
[1764638475195,3.26,127.18,127.11,110.1478]
[1764638475395,3.26,127.21,127.13,110.1307]
[1764638475998,3.26,127.2,127.15,7.0785]
[1764638476399,3.31404189,127.19,127.16,0.05552233]
[1764638477803,0.05404189,127.19,127.16,7.13342233]
[1764638478006,3.31404189,127.19,127.16,0.05552233]
[1764638482404,3.26,127.18,127.16,0.05552233]
[1764638489409,3.31404189,127.19,127.16,7.13362233]
[1764638489607,0.05404189,127.19,127.16,7.13362233]
[1764638489807,3.31404189,127.19,127.16,7.13362233]
[1764638490514,0.05404189,127.19,127.17,7.0774]
[1764638491113,3.18404189,127.19,127.16,0.05552233]
[1764638495811,0.05404189,127.19,127.17,7.0774]
[1764638496908,3.18404189,127.19,127.16,0.05552233]
[1764638501026,3.15,127.17,127.16,0.05552233]
[1764638504927,3.15,127.17,127.13,7.0797]
[1764638505824,0.05347985,127.16,127.14,0.04972212]
[1764638506132,3.15,127.15,127.14,0.04972212]
[1764638509334,3.15,127.14,127.11,7.0807]
[1764638510134,0.05284634,127.14,127.12,7.0802]
[1764638516239,3.15,127.19,127.15,7.0786]
[1764638516437,3.15,127.17,127.15,7.0786]
[1764638517239,3.20921577,127.17,127.15,7.13563093]
[1764638518233,3.20921577,127.17,127.15,0.05703093]
[1764638520742,0.05921577,127.17,127.15,0.05703093]
[1764638520943,3.20921577,127.17,127.15,0.05703093]
[1764638521753,12.08056736,127.16,127.15,0.05703093]
[1764638523846,12.08056736,127.16,127.11,110.146]
[1764638523847,3.15,127.15,127.11,7.0808]
[1764638524047,3.15,127.13,127.07,110.1783]
[1764638524346,3.15,127.11,127.07,110.1783]
[1764638524742,0.05000136,127.1,127.08,0.05440486]
[1764638525350,0.05000136,127.1,127.09,7.082]
[1764638526453,3.20000136,127.1,127.08,0.05440486]
[1764638527244,6.02297706,127.09,127.08,0.05440486]
[1764638527644,9.17297706,127.09,127.08,0.05440486]
[1764638528247,3.15,127.09,127.08,0.05440486]
[1764638528447,0.05000136,127.1,127.08,0.05440486]
[1764638530455,0.05000136,127.1,127.08,7.13690486]
[1764638532050,3.38,127.15,127.11,7.0809]
[1764638532255,6.01557759,127.14,127.11,7.0809]
[1764638532457,3.38,127.15,127.11,7.0809]
[1764638533255,0.05355743,127.14,127.12,0.05832851]
[1764638538270,3.43355743,127.14,127.12,0.05832851]
[1764638544173,0.05355743,127.14,127.13,7.0798]
[1764638544375,3.43355743,127.14,127.12,0.05832851]
[1764638546479,3.38,127.12,127.05,110.1968]
[1764638547580,3.38,127.09,127.07,0.05096439]
[1764638550572,0.0498895,127.1,127.07,7.13396439]
[1764638550772,3.4198895,127.1,127.07,7.13396439]
[1764638552187,3.4198895,127.1,127.07,0.05096439]
[1764638552379,3.37,127.08,127.07,0.05096439]
[1764638552570,3.37,127.08,127.0,110.2407]
[1764638553676,3.42535012,127.06,127.0,110.2407]
[1764638554472,3.42535012,127.06,127.03,7.0852]
[1764638554777,3.42535012,127.06,127.0,110.2407]
[1764638555583,0.05535012,127.06,127.03,7.0852]
[1764638555975,0.05535012,127.06,127.02,110.226]
[1764638557483,0.05535012,127.06,127.04,7.0846]
[1764638559984,0.05535012,127.06,127.04,75.0446]
[1764638560784,7.081,127.11,127.04,75.0446]
[1764638560785,7.0798,127.14,127.04,178.164]
[1764638560981,3.38,127.13,127.06,110.1836]
[1764638561181,3.38,127.13,127.06,67.94]
[1764638561782,0.05377592,127.11,127.08,0.05304323]
[1764638563485,0.05377592,127.11,127.09,7.0819]
[1764638564700,3.38,127.16,127.12,7.0803]
[1764638564992,3.38,127.19,127.13,2.09021364]
[1764638565691,0.05891345,127.17,127.15,0.0587969]
[1764638565992,3.43891345,127.17,127.15,0.0587969]
[1764638567391,0.05891345,127.17,127.15,7.1370969]
[1764638567986,3.43891345,127.17,127.15,7.1370969]
[1764638568984,0.05891345,127.17,127.15,7.1370969]
[1764638569387,3.38,127.23,127.17,7.0773]
[1764638569592,3.38,127.23,127.17,180.10671364]
[1764638569794,3.38,127.23,127.15,112.19931364]
[1764638569999,3.38,127.23,127.16,67.92]
[1764638570590,3.43827254,127.21,127.18,0.05741018]
[1764638571690,0.05827254,127.21,127.18,0.05741018]
[1764638572195,3.43827254,127.21,127.18,0.05741018]
[1764638572392,3.43827254,127.21,127.18,7.13411018]
[1764638574195,3.43827254,127.21,127.19,7.0761]
[1764638574402,0.05827254,127.21,127.19,7.0761]
[1764638574595,3.38,127.24,127.19,112.16891364]
[1764638574900,3.38,127.24,127.21,7.0751]
[1764638575501,3.43378331,127.24,127.21,7.12618417]
[1764638575797,3.43378331,127.24,127.21,0.05108417]
[1764638577600,3.43378331,127.24,127.21,7.12618417]
[1764638580488,3.43378331,127.24,127.22,7.0746]
[1764638580703,0.05378331,127.24,127.22,7.0746]
[1764638582395,7.0711,127.29,127.22,7.0746]
[1764638582396,3.38,127.29,127.23,177.9043]
[1764638582604,3.38,127.29,127.23,179.99451364]
[1764638583396,0.05456252,127.27,127.25,7.12865894]
[1764638586204,0.05456252,127.27,127.25,9.21887258]
[1764638586394,3.38,127.32,127.28,7.0711]
[1764638587515,0.04975173,127.31,127.29,7.12515164]
[1764638589007,3.15975173,127.31,127.29,7.12515164]
[1764638590300,3.15975173,127.31,127.29,0.05465164]
[1764638591194,0.04975173,127.31,127.29,0.05465164]
[1764638591400,0.04975173,127.31,127.29,2.14486528]
[1764638591899,0.04975173,127.31,127.29,9.21566528]
[1764638592504,3.11,127.39,127.31,109.9736]
[1764638592704,74.8852,127.4,127.33,112.04631364]
[1764638592705,3.11,127.38,127.33,112.04631364]
[1764638592905,67.82,127.4,127.33,112.04631364]
[1764638592906,3.11,127.4,127.36,7.0667]
[1764638593502,3.16578922,127.39,127.37,0.05437601]
[1764638597314,0.05578922,127.39,127.37,0.05437601]
[1764638598204,3.16578922,127.39,127.37,0.05437601]
[1764638600114,0.05578922,127.39,127.37,7.12057601]
[1764638601108,3.11,127.42,127.39,7.065]
[1764638601313,3.11,127.42,127.38,112.00171364]
[1764638602014,2.09021364,127.45,127.38,112.00171364]
[1764638602215,3.16721371,127.43,127.41,7.0641]
[1764638602414,3.16721371,127.43,127.41,7.11566643]
[1764638602415,3.17047945,127.43,127.41,7.11566643]
[1764638602911,3.17047945,127.43,127.41,0.05156643]
[1764638603214,5.97196056,127.42,127.41,0.05156643]
[1764638603514,2.86196056,127.42,127.41,0.05156643]
[1764638603817,0.06047945,127.43,127.41,0.05156643]
[1764638605110,2.86559779,127.42,127.41,0.05156643]
[1764638605310,2.86559779,127.42,127.41,7.11536643]
[1764638607923,5.97559779,127.42,127.41,0.05156643]
[1764638608427,5.97559779,127.42,127.41,0.00156643]
[1764638608616,3.11,127.41,127.37,7.0662]